fUSD/lending_fUSD_20240904
["ID","MTS","AMOUNT","RATE_DAILY","PERIOD"]
[337188520,1725493873836,-633.09,0.00014892,2]
[337188521,1725493873846,-598.2982586,0.00014892,2]
[337188522,1725493873857,-500.0,0.00014892,2]
[337188523,1725493873867,-1223.39,0.00014892,2]
[337188524,1725493873876,-1223.39,0.00014892,2]
[337188525,1725493873885,-880.57,0.00014892,2]
[337188526,1725493873895,-880.57,0.00014892,2]
[337188527,1725493873906,-880.57,0.00014892,2]
[337188528,1725493873915,-1193.97,0.00014892,2]
[337188529,1725493873924,-500.0,0.00014892,2]
[337188530,1725493873937,-500.0,0.00014892,2]
[337188531,1725493873946,-500.0,0.00014892,2]
[337188532,1725493873958,-2515.32,0.00014892,2]
[337188533,1725493873967,-2515.32,0.00014892,2]
[337188534,1725493873977,-2047.03,0.00014892,2]
[337188535,1725493873987,-2515.32,0.00014892,2]
[337188536,1725493873998,-1330.48,0.00014892,2]
[337188537,1725493874009,-1370.12,0.00014892,2]
[337188538,1725493874019,-1330.48,0.00014892,2]
[337188539,1725493874030,-1370.12,0.00014892,2]
[337188540,1725493874039,-500.0,0.00014892,2]
[337188541,1725493874049,-500.0,0.00014892,2]
[337188542,1725493874059,-1002.0,0.00014892,2]
[337188543,1725493874069,-1002.0,0.00014892,2]
[337188544,1725493874079,-500.0,0.00014892,2]
[337188545,1725493874089,-500.0,0.00014892,2]
[337188546,1725493874100,-500.0,0.00014892,2]
[337188547,1725493874109,-500.0,0.00014892,2]
[337188548,1725493874119,-500.0,0.00014892,2]
[337188549,1725493874129,-500.0,0.00014892,2]
[337188550,1725493874138,-592.31500716,0.00014892,2]
[337188551,1725493874148,-20290.12,0.00014892,2]
[337188552,1725493874158,-20290.12,0.00014892,2]
[337188553,1725493874167,-1919.53,0.00014892,2]
[337188554,1725493874176,-1998.4,0.00014892,2]
[337188555,1725493874185,-1919.53,0.00014892,2]
[337188556,1725493874195,-500.0,0.00014892,2]
[337188557,1725493874204,-500.0,0.00014892,2]
[337188558,1725493874214,-500.0,0.00014892,2]
[337188559,1725493874223,-500.0,0.00014892,2]
[337188560,1725493874232,-500.0,0.00014892,2]
[337188561,1725493874242,-500.0,0.00014892,2]
[337188562,1725493874252,-500.0,0.00014892,2]
[337188563,1725493874261,-500.0,0.00014892,2]
[337188564,1725493874271,-500.0,0.00014892,2]
[337188565,1725493874286,-500.0,0.00014892,2]
[337188566,1725493874296,-1453.8,0.00014892,2]
[337188567,1725493874306,-500.0,0.00014892,2]
[337188568,1725493874315,-1453.8,0.00014892,2]
[337188569,1725493874324,-500.0,0.00014892,2]
[337188570,1725493874333,-1535.5,0.00014892,2]
[337188571,1725493874343,-1535.5,0.00014892,2]
[337188572,1725493874353,-7141.47,0.00014892,2]
[337188573,1725493874362,-921.5,0.00014892,2]
[337188574,1725493874372,-500.0,0.00014892,2]
[337188575,1725493874382,-500.0,0.00014892,2]
[337188576,1725493874392,-500.0,0.00014892,2]
[337188577,1725493874402,-666.22,0.00014892,2]
[337188578,1725493874411,-500.0,0.00014892,2]
[337188579,1725493874420,-1434.26,0.00014892,2]
[337188580,1725493874429,-1434.26,0.00014892,2]
[337188581,1725493874439,-834.65,0.00014892,2]
[337188582,1725493874449,-834.65,0.00014892,2]
[337188583,1725493874458,-834.65,0.00014892,2]
[337188584,1725493874468,-1256.47,0.00014892,2]
[337188585,1725493874477,-151.0,0.00014892,2]
[337188586,1725493874487,-151.0,0.00014892,2]
[337188587,1725493874496,-151.0,0.00014892,2]
[337188588,1725493874506,-1256.47,0.00014892,2]
[337188589,1725493874515,-1256.47,0.00014892,2]
[337188590,1725493874524,-500.0,0.00014892,2]
[337188591,1725493874535,-500.0,0.00014892,2]
[337188592,1725493874544,-231.44591932,0.00014892,2]
[337188593,1725493874553,-1777.58,0.00014892,2]
[337188594,1725493874562,-783.4,0.00014892,2]
[337188595,1725493874571,-783.4,0.00014892,2]
[337188596,1725493874580,-783.4,0.00014892,2]
[337188597,1725493874590,-500.0,0.00014892,2]
[337188598,1725493874599,-500.0,0.00014892,2]
[337188599,1725493874608,-1220.28,0.00014892,2]
[337188600,1725493874620,-1220.28,0.00014892,2]
[337188601,1725493874629,-150.84136132,0.00014892,2]
[337188602,1725493874638,-500.0,0.00014892,2]
[337188603,1725493874648,-406.45151035,0.00014892,2]
[337188604,1725493874657,-500.0,0.00014892,2]
[337188605,1725493874666,-500.0,0.00014892,2]
[337188606,1725493874675,-500.0,0.00014892,2]
[337188607,1725493874684,-430.28059304,0.00014892,2]
[337188608,1725493874694,-1107.95,0.00014892,2]
[337188609,1725493874704,-1107.95,0.00014892,2]
[337188610,1725493874715,-633.94,0.00014892,2]
[337188611,1725493874724,-633.94,0.00014892,2]
[337188612,1725493874736,-633.94,0.00014892,2]
[337188613,1725493874745,-500.0,0.00014892,2]
[337188614,1725493874758,-500.0,0.00014892,2]
[337188615,1725493874769,-8826.45,0.00014892,2]
[337188616,1725493874779,-506.22,0.00014892,2]
[337188617,1725493874788,-500.0,0.00014892,2]
[337188618,1725493874797,-500.0,0.00014892,2]
[337188619,1725493874807,-506.22,0.00014892,2]
[337188620,1725493874816,-500.0,0.00014892,2]
[337188621,1725493874826,-506.22,0.00014892,2]
[337188622,1725493874836,-556.52560528,0.00014892,2]
[337188623,1725493874847,-6819.83,0.00014892,2]
[337188624,1725493874857,-650.82,0.00014892,2]
[337188625,1725493874867,-727.09,0.00014892,2]
[337188626,1725493874877,-1252.29,0.00014892,2]
[337188627,1725493874888,-1252.29,0.00014892,2]
[337188628,1725493874898,-500.0,0.00014892,2]
[337188629,1725493874908,-3329.55,0.00014892,2]
[337188630,1725493874919,-500.0,0.00014892,2]
[337188631,1725493874930,-252.361117,0.00014892,2]
[337188632,1725493874940,-2265.63,0.00014892,2]
[337188633,1725493874951,-3329.55,0.00014892,2]
[337188634,1725493874960,-2265.63,0.00014892,2]
[337188635,1725493874970,-252.361117,0.00014892,2]
[337188636,1725493874979,-252.361117,0.00014892,2]
[337188637,1725493874989,-2697.94,0.00014892,2]
[337188638,1725493874998,-546.25,0.00014892,2]
[337188639,1725493875009,-252.361117,0.00014892,2]
[337188640,1725493875018,-31066.82,0.00014892,2]
[337188641,1725493875029,-546.25,0.00014892,2]
[337188642,1725493875039,-602.09,0.00014892,2]
[337188643,1725493875049,-252.361117,0.00014892,2]
[337188644,1725493875059,-602.09,0.00014892,2]
[337188645,1725493875068,-252.361117,0.00014892,2]
[337188646,1725493875078,-602.09,0.00014892,2]
[337188647,1725493875087,-500.0,0.00014892,2]
[337188648,1725493875097,-500.0,0.00014892,2]
[337188649,1725493875106,-369.98404188,0.00014892,2]
[337188650,1725493875116,-500.0,0.00014892,2]
[337188651,1725493875126,-500.0,0.00014892,2]
[337188652,1725493875135,-500.0,0.00014892,2]
[337188653,1725493875148,-500.0,0.00014892,2]
[337188654,1725493875160,-500.0,0.00014892,2]
[337188655,1725493875171,-2004.33,0.00014892,2]
[337188656,1725493875180,-500.0,0.00014892,2]
[337188657,1725493875190,-2004.33,0.00014892,2]
[337188658,1725493875200,-500.0,0.00014892,2]
[337188659,1725493875211,-785.56,0.00014892,2]
[337188660,1725493875221,-785.56,0.00014892,2]
[337188661,1725493875230,-500.0,0.00014892,2]
[337188662,1725493875239,-500.0,0.00014892,2]
[337188663,1725493875249,-500.0,0.00014892,2]
[337188664,1725493875259,-500.0,0.00014892,2]
[337188665,1725493875272,-500.0,0.00014892,2]
[337188666,1725493875282,-500.0,0.00014892,2]
[337188667,1725493875292,-500.0,0.00014892,2]
[337188668,1725493875302,-500.0,0.00014892,2]
[337188669,1725493875312,-500.0,0.00014892,2]
[337188670,1725493875321,-332.81351363,0.00014892,2]
[337188671,1725493875331,-500.0,0.00014892,2]
[337188672,1725493875340,-500.0,0.00014892,2]
[337188673,1725493875350,-212.77397816,0.00014892,2]
[337188674,1725493875360,-500.0,0.00014892,2]
[337188675,1725493875369,-500.0,0.00014892,2]
[337188676,1725493875379,-500.0,0.00014892,2]
[337188677,1725493875388,-500.0,0.00014892,2]
[337188678,1725493875397,-500.0,0.00014892,2]
[337188679,1725493875407,-500.0,0.00014892,2]
[337188680,1725493875416,-500.0,0.00014892,2]
[337188681,1725493875426,-500.0,0.00014892,2]
[337188682,1725493875436,-500.0,0.00014892,2]
[337188683,1725493875446,-500.0,0.00014892,2]
[337188684,1725493875455,-500.0,0.00014892,2]
[337188685,1725493875465,-1080.59,0.00014892,2]
[337188686,1725493875474,-1080.59,0.00014892,2]
[337188687,1725493875484,-2391.7,0.00014892,2]
[337188688,1725493875493,-500.0,0.00014892,2]
[337188689,1725493875503,-500.0,0.00014892,2]
[337188690,1725493875512,-2369.51,0.00014892,2]
[337188691,1725493875522,-2369.51,0.00014892,2]
[337188692,1725493875535,-807.71,0.00014892,2]
[337188693,1725493875546,-500.0,0.00014892,2]
[337188694,1725493875557,-500.0,0.00014892,2]
[337188695,1725493875568,-500.0,0.00014892,2]
[337188696,1725493875579,-975.89,0.00014892,2]
[337188697,1725493875592,-975.89,0.00014892,2]
[337188698,1725493875685,-659.68,0.00014892,2]
[337188699,1725493875694,-686.45,0.00014892,2]
[337188700,1725493875703,-659.68,0.00014892,2]
[337188701,1725493875712,-686.45,0.00014892,2]
[337188702,1725493875721,-659.68,0.00014892,2]
[337188703,1725493875732,-686.45,0.00014892,2]
[337188704,1725493875741,-500.0,0.00014892,2]
[337188705,1725493875751,-597.62007189,0.00014892,2]
[337188706,1725493875761,-1883.96,0.00014892,2]
[337188707,1725493875770,-3799.95,0.00014892,2]
[337188708,1725493875779,-500.0,0.00014892,2]
[337188709,1725493875788,-3799.95,0.00014892,2]
[337188710,1725493875798,-500.0,0.00014892,2]
[337188711,1725493875806,-3799.95,0.00014892,2]
[337188712,1725493875815,-500.0,0.00014892,2]
[337188713,1725493875824,-1458.37,0.00014892,2]
[337188714,1725493875833,-698.74,0.00014892,2]
[337188715,1725493875842,-500.0,0.00014892,2]
[337188716,1725493875851,-698.74,0.00014892,2]
[337188717,1725493875860,-500.0,0.00014892,2]
[337188718,1725493875870,-2452.3,0.00014892,2]
[337188719,1725493875879,-2452.3,0.00014892,2]
[337188720,1725493875887,-2637.27,0.00014892,2]
[337188721,1725493875896,-500.0,0.00014892,2]
[337188722,1725493875905,-500.0,0.00014892,2]
[337188723,1725493875914,-151.0,0.00014892,2]
[337188724,1725493875923,-151.0,0.00014892,2]
[337188725,1725493875933,-151.0,0.00014892,2]
[337188726,1725493875942,-500.0,0.00014892,2]
[337188727,1725493875951,-500.0,0.00014892,2]
[337188728,1725493875960,-500.0,0.00014892,2]
[337188729,1725493875970,-1998.41,0.00014892,2]
[337188730,1725493875979,-1998.41,0.00014892,2]
[337188731,1725493875988,-1998.41,0.00014892,2]
[337188732,1725493875997,-500.0,0.00014892,2]
[337188733,1725493876007,-151.0,0.00014892,2]
[337188734,1725493876018,-500.0,0.00014892,2]
[337188735,1725493876028,-151.0,0.00014892,2]
[337188736,1725493876039,-500.0,0.00014892,2]
[337188737,1725493876048,-151.0,0.00014892,2]
[337188738,1725493876059,-540.29,0.00014892,2]
[337188739,1725493876069,-540.29,0.00014892,2]
[337188740,1725493876079,-642.38,0.00014892,2]
[337188741,1725493876089,-500.0,0.00014892,2]
[337188742,1725493876098,-179.96507218,0.00014892,2]
[337188743,1725493876108,-1169.66,0.00014892,2]
[337188744,1725493876119,-1169.66,0.00014892,2]
[337188745,1725493876128,-479.87781749,0.00014892,2]
[337188746,1725493876137,-500.0,0.00014892,2]
[337188747,1725493876147,-500.0,0.00014892,2]
[337188748,1725493876156,-642.01919723,0.00014892,2]
[337188749,1725493876165,-2408.55,0.00014892,2]
[337188750,1725493876174,-774.29,0.00014892,2]
[337188751,1725493876183,-774.29,0.00014892,2]
[337188752,1725493876193,-500.0,0.00014892,2]
[337188753,1725493876203,-500.0,0.00014892,2]
[337188754,1725493876212,-500.0,0.00014892,2]
[337188755,1725493876222,-500.0,0.00014892,2]
[337188756,1725493876231,-500.0,0.00014892,2]
[337188757,1725493876240,-500.0,0.00014892,2]
[337188758,1725493876249,-500.0,0.00014892,2]
[337188759,1725493876258,-530.47,0.00014892,2]
[337188760,1725493876268,-500.0,0.00014892,2]
[337188761,1725493876277,-530.47,0.00014892,2]
[337188762,1725493876286,-500.0,0.00014892,2]
[337188763,1725493876295,-500.0,0.00014892,2]
[337188764,1725493876305,-689.45,0.00014892,2]
[337188765,1725493876315,-539.57,0.00014892,2]
[337188766,1725493876325,-539.57,0.00014892,2]
[337188767,1725493876335,-2338.27,0.00014892,2]
[337188768,1725493876344,-2338.27,0.00014892,2]
[337188769,1725493876354,-500.0,0.00014892,2]
[337188770,1725493876363,-500.0,0.00014892,2]
[337188771,1725493876372,-348.11246251,0.00014892,2]
[337188772,1725493876381,-500.0,0.00014892,2]
[337188773,1725493876390,-500.0,0.00014892,2]
[337188774,1725493876399,-500.0,0.00014892,2]
[337188775,1725493876409,-500.0,0.00014892,2]
[337188776,1725493876420,-3957.26,0.00014892,2]
[337188777,1725493876429,-1233.86,0.00014892,2]
[337188778,1725493876439,-620.13,0.00014892,2]
[337188779,1725493876448,-3957.26,0.00014892,2]
[337188780,1725493876457,-620.13,0.00014892,2]
[337188781,1725493876466,-529.82,0.00014892,2]
[337188782,1725493876475,-529.82,0.00014892,2]
[337188783,1725493876484,-500.0,0.00014892,2]
[337188784,1725493876493,-500.0,0.00014892,2]
[337188785,1725493876502,-504.34435527,0.00014892,2]
[337188786,1725493876511,-500.0,0.00014892,2]
[337188787,1725493876521,-499.4389609,0.00014892,2]
[337188788,1725493876530,-500.0,0.00014892,2]
[337188789,1725493876539,-500.0,0.00014892,2]
[337188790,1725493876549,-500.0,0.00014892,2]
[337188791,1725493876559,-511.12827274,0.00014892,2]
[337188792,1725493876569,-309.61288681,0.00014892,2]
[337188793,1725493876578,-500.0,0.00014892,2]
[337188794,1725493876588,-16527.03,0.00014892,2]
[337188795,1725493876600,-500.0,0.00014892,2]
[337188796,1725493876610,-500.0,0.00014892,2]
[337188797,1725493876619,-500.0,0.00014892,2]
[337188798,1725493876628,-500.0,0.00014892,2]
[337188799,1725493876638,-500.0,0.00014892,2]
[337188800,1725493876648,-174.6904559,0.00014892,2]
[337188801,1725493876658,-1583.31,0.00014892,2]
[337188802,1725493876667,-716.42,0.00014892,2]
[337188803,1725493876678,-1583.31,0.00014892,2]
[337188804,1725493876691,-1504.1,0.00014892,2]
[337188805,1725493876701,-1504.1,0.00014892,2]
[337188806,1725493876710,-515.05,0.00014892,2]
[337188807,1725493876720,-515.05,0.00014892,2]
[337188808,1725493876730,-524.79,0.00014892,2]
[337188809,1725493876741,-515.05,0.00014892,2]
[337188810,1725493876752,-524.79,0.00014892,2]
[337188811,1725493876762,-524.79,0.00014892,2]
[337188812,1725493876772,-1498.99,0.00014892,2]
[337188813,1725493876782,-500.0,0.00014892,2]
[337188814,1725493876791,-500.0,0.00014892,2]
[337188815,1725493876800,-500.0,0.00014892,2]
[337188816,1725493876810,-500.0,0.00014892,2]
[337188817,1725493876820,-1034.71,0.00014892,2]
[337188818,1725493876829,-1034.71,0.00014892,2]
[337188819,1725493876839,-1034.71,0.00014892,2]
[337188820,1725493876850,-615.56,0.00014892,2]
[337188821,1725493876860,-1587.2,0.00014892,2]
[337188822,1725493876871,-1587.2,0.00014892,2]
[337188823,1725493876881,-615.56,0.00014892,2]
[337188824,1725493876890,-615.56,0.00014892,2]
[337188825,1725493876900,-500.0,0.00014892,2]
[337188826,1725493876910,-677.9,0.00014892,2]
[337188827,1725493876921,-677.9,0.00014892,2]
[337188828,1725493876930,-500.0,0.00014892,2]
[337188829,1725493876939,-503.73942732,0.00014892,2]
[337188830,1725493876948,-3278.12,0.00014892,2]
[337188831,1725493876956,-11296.32,0.00014892,2]
[337188832,1725493876965,-1254.2,0.00014892,2]
[337188833,1725493876974,-11296.32,0.00014892,2]
[337188834,1725493876983,-1254.2,0.00014892,2]
[337188835,1725493876993,-500.0,0.00014892,2]
[337188836,1725493877002,-500.0,0.00014892,2]
[337188837,1725493877013,-639.64,0.00014892,2]
[337188838,1725493877023,-500.0,0.00014892,2]
[337188839,1725493877033,-639.64,0.00014892,2]
[337188840,1725493877042,-639.64,0.00014892,2]
[337188841,1725493877052,-500.0,0.00014892,2]
[337188842,1725493877062,-500.0,0.00014892,2]
[337188843,1725493877070,-500.0,0.00014892,2]
[337188844,1725493877080,-1557.04,0.00014892,2]
[337188845,1725493877089,-1557.04,0.00014892,2]
[337188846,1725493877098,-500.0,0.00014892,2]
[337188847,1725493877107,-500.0,0.00014892,2]
[337188848,1725493877116,-500.0,0.00014892,2]
[337188849,1725493877125,-509.20945182,0.00014892,2]
[337188850,1725493877134,-2938.3,0.00014892,2]
[337188851,1725493877143,-500.0,0.00014892,2]
[337188852,1725493877152,-1139.67,0.00014892,2]
[337188853,1725493877161,-500.0,0.00014892,2]
[337188854,1725493877170,-1139.67,0.00014892,2]
[337188855,1725493877180,-500.0,0.00014892,2]
[337188856,1725493877189,-500.0,0.00014892,2]
[337188857,1725493877198,-500.0,0.00014892,2]
[337188858,1725493877207,-500.0,0.00014892,2]
[337188859,1725493877216,-500.0,0.00014892,2]
[337188860,1725493877225,-1314.4,0.00014892,2]
[337188861,1725493877234,-1314.4,0.00014892,2]
[337188862,1725493877243,-2582.17,0.00014892,2]
[337188863,1725493877252,-500.0,0.00014892,2]
[337188864,1725493877261,-500.0,0.00014892,2]
[337188865,1725493877270,-500.0,0.00014892,2]
[337188866,1725493877279,-526.63241877,0.00014892,2]
[337188867,1725493877289,-1326.99,0.00014892,2]
[337188868,1725493877299,-1326.99,0.00014892,2]
[337188869,1725493877309,-500.0,0.00014892,2]
[337188870,1725493877318,-1158.36,0.00014892,2]
[337188871,1725493877326,-500.0,0.00014892,2]
[337188872,1725493877336,-1158.36,0.00014892,2]
[337188873,1725493877345,-504.0,0.00014893,2]
[337188874,1725493877354,-300.0,0.00014893,2]
[337188875,1725493877364,-500.0,0.00014893,2]
[337188876,1725493877372,-500.0,0.00014893,2]
[337188877,1725493877381,-500.0,0.00014893,2]
[337188878,1725493877390,-500.0,0.00014893,2]
[337188879,1725493877399,-500.0,0.00014893,2]
[337188880,1725493877408,-500.0,0.00014893,2]
[337188881,1725493877417,-500.0,0.00014893,2]
[337188882,1725493877426,-500.0,0.00014893,2]
[337188883,1725493877435,-500.0,0.00014893,2]
[337188884,1725493877444,-500.0,0.00014893,2]
[337188885,1725493877453,-500.0,0.00014893,2]
[337188886,1725493877462,-500.0,0.00014893,2]
[337188887,1725493877471,-520.88,0.00014893,2]
[337188888,1725493877479,-500.0,0.00014893,2]
[337188889,1725493877488,-500.0,0.00014893,2]
[337188890,1725493877497,-500.0,0.00014893,2]
[337188891,1725493877506,-500.0,0.00014893,2]
[337188892,1725493877515,-212.51370953,0.00014893,2]
[337188893,1725493877524,-596.73,0.00014893,2]
[337188894,1725493877538,-500.0,0.00014893,2]
[337188895,1725493877547,-500.0,0.00014893,2]
[337188896,1725493877556,-500.0,0.00014893,2]
[337188897,1725493877565,-500.0,0.00014893,2]
[337188898,1725493877575,-500.0,0.00014893,2]
[337188899,1725493877584,-500.0,0.00014893,2]
[337188900,1725493877593,-500.0,0.00014893,2]
[337188901,1725493877606,-500.0,0.00014893,2]
[337188902,1725493877615,-500.0,0.00014893,2]
[337188903,1725493877624,-500.0,0.00014893,2]
[337188904,1725493877633,-565.06,0.00014893,2]
[337188905,1725493877642,-500.0,0.00014893,2]
[337188906,1725493877651,-500.0,0.00014893,2]
[337188907,1725493877660,-608.63292274,0.00014893,2]
[337188908,1725493877669,-500.0,0.00014893,2]
[337188909,1725493877680,-500.0,0.00014893,2]
[337188910,1725493877688,-500.0,0.00014893,2]
[337188911,1725493877698,-500.0,0.00014893,2]
[337188912,1725493877707,-500.0,0.00014893,2]
[337188913,1725493877715,-500.0,0.00014893,2]
[337188914,1725493877724,-500.0,0.00014893,2]
[337188915,1725493877734,-756.98,0.00014893,2]
[337188916,1725493877743,-500.0,0.00014893,2]
[337188917,1725493877752,-500.0,0.00014893,2]
[337188918,1725493877763,-859.41,0.00014893,2]
[337188919,1725493877774,-500.0,0.00014893,2]
[337188920,1725493877785,-500.0,0.00014893,2]
[337188921,1725493877794,-334.68011134,0.00014893,2]
[337188922,1725493877803,-672.84,0.00014893,2]
[337188923,1725493877812,-555.99,0.00014893,2]
[337188924,1725493877821,-672.36,0.00014893,2]
[337188925,1725493877830,-500.0,0.00014893,2]
[337188926,1725493877839,-500.0,0.00014893,2]
[337188927,1725493877849,-500.0,0.00014893,2]
[337188928,1725493877857,-500.0,0.00014893,2]
[337188929,1725493877867,-500.0,0.00014893,2]
[337188930,1725493877876,-500.0,0.00014893,2]
[337188931,1725493877885,-500.0,0.00014893,2]
[337188932,1725493877894,-500.0,0.00014893,2]
[337188933,1725493877903,-500.0,0.00014893,2]
[337188934,1725493877912,-500.0,0.00014893,2]
[337188935,1725493877921,-577.56,0.00014893,2]
[337188936,1725493877929,-500.0,0.00014893,2]
[337188937,1725493877939,-500.0,0.00014893,2]
[337188938,1725493877950,-500.0,0.00014893,2]
[337188939,1725493877959,-500.0,0.00014893,2]
[337188940,1725493877968,-500.0,0.00014893,2]
[337188941,1725493877978,-500.0,0.00014893,2]
[337188942,1725493877987,-500.0,0.00014893,2]
[337188943,1725493877997,-736.16,0.00014893,2]
[337188944,1725493878007,-500.0,0.00014893,2]
[337188945,1725493878016,-500.0,0.00014893,2]
[337188946,1725493878025,-500.0,0.00014893,2]
[337188947,1725493878039,-704.87,0.00014893,2]
[337188948,1725493878048,-500.0,0.00014893,2]
[337188949,1725493878057,-500.0,0.00014893,2]
[337188950,1725493878066,-561.59628722,0.00014893,2]
[337188951,1725493878076,-500.0,0.00014893,2]
[337188952,1725493878085,-500.0,0.00014893,2]
[337188953,1725493878095,-500.0,0.00014893,2]
[337188954,1725493878104,-500.0,0.00014893,2]
[337188955,1725493878114,-394.7461165,0.00014893,2]
[337188956,1725493878123,-599.96,0.00014893,2]
[337188957,1725493878133,-500.0,0.00014893,2]
[337188958,1725493878142,-1250.71,0.00014893,2]
[337188959,1725493878151,-830.95,0.00014893,2]
[337188960,1725493878160,-500.0,0.00014893,2]
[337188961,1725493878170,-500.0,0.00014893,2]
[337188962,1725493878179,-500.0,0.00014893,2]
[337188963,1725493878188,-500.0,0.00014893,2]
[337188964,1725493878197,-500.0,0.00014893,2]
[337188965,1725493878207,-500.0,0.00014893,2]
[337188966,1725493878216,-500.0,0.00014893,2]
[337188967,1725493878225,-500.0,0.00014893,2]
[337188968,1725493878234,-500.0,0.00014893,2]
[337188969,1725493878243,-500.0,0.00014893,2]
[337188970,1725493878252,-500.0,0.00014893,2]
[337188971,1725493878261,-503.81330163,0.00014893,2]
[337188972,1725493878270,-500.0,0.00014893,2]
[337188973,1725493878280,-754.43,0.00014893,2]
[337188974,1725493878289,-500.0,0.00014893,2]
[337188975,1725493878299,-848.94,0.00014893,2]
[337188976,1725493878308,-506.8,0.00014893,2]
[337188977,1725493878317,-500.0,0.00014893,2]
[337188978,1725493878326,-500.0,0.00014893,2]
[337188979,1725493878335,-500.0,0.00014893,2]
[337188980,1725493878345,-500.0,0.00014893,2]
[337188981,1725493878354,-500.0,0.00014893,2]
[337188982,1725493878364,-1352.58,0.00014893,2]
[337188983,1725493878373,-500.0,0.00014893,2]
[337188984,1725493878383,-500.0,0.00014893,2]
[337188985,1725493878391,-500.0,0.00014893,2]
[337188986,1725493878401,-563.86,0.00014893,2]
[337188987,1725493878411,-1556.87,0.00014893,2]
[337188988,1725493878420,-984.38,0.00014893,2]
[337188989,1725493878429,-500.0,0.00014893,2]
[337188990,1725493878439,-500.0,0.00014893,2]
[337188991,1725493878448,-500.0,0.00014893,2]
[337188992,1725493878457,-1712.93,0.00014893,2]
[337188993,1725493878467,-500.0,0.00014893,2]
[337188994,1725493878476,-500.0,0.00014893,2]
[337188995,1725493878485,-500.0,0.00014893,2]
[337188996,1725493878496,-652.57,0.00014893,2]
[337188997,1725493878506,-1063.27,0.00014893,2]
[337188998,1725493878515,-500.0,0.00014893,2]
[337188999,1725493878525,-500.0,0.00014893,2]
[337189000,1725493878535,-860.59,0.00014893,2]
[337189001,1725493878545,-1261.91,0.00014893,2]
[337189002,1725493878554,-500.0,0.00014893,2]
[337189003,1725493878564,-500.0,0.00014893,2]
[337189004,1725493878573,-500.0,0.00014893,2]
[337189005,1725493878582,-500.0,0.00014893,2]
[337189006,1725493878592,-500.0,0.00014893,2]
[337189007,1725493878605,-500.0,0.00014893,2]
[337189008,1725493878615,-500.0,0.00014893,2]
[337189009,1725493878624,-500.0,0.00014893,2]
[337189010,1725493878634,-1057.81,0.00014893,2]
[337189011,1725493878644,-500.0,0.00014893,2]
[337189012,1725493878655,-721.55,0.00014893,2]
[337189013,1725493878664,-615.3,0.00014893,2]
[337189014,1725493878673,-846.69,0.00014893,2]
[337189015,1725493878684,-2547.99,0.00014893,2]
[337189016,1725493878694,-500.0,0.00014893,2]
[337189017,1725493878703,-2200.02,0.00014893,2]
[337189018,1725493878712,-500.0,0.00014893,2]
[337189019,1725493878722,-500.0,0.00014893,2]